fUST/lending_fUST_20240511
["ID","MTS","AMOUNT","RATE_DAILY","PERIOD"]
[326787325,1715368248222,-361.318485,0.00019995,2]
[326787326,1715368248230,-151.0,0.00019995,2]
[326787327,1715368248239,-151.0,0.00019995,2]
[326787328,1715368248249,-2191.231695,0.00019995,2]
[326787329,1715368248258,-2191.231695,0.00019995,2]
[326787330,1715368248267,-346.934962,0.00019995,2]
[326787331,1715368248276,-2191.231695,0.00019995,2]
[326787332,1715368248286,-2191.231695,0.00019995,2]
[326787333,1715368248295,-346.934962,0.00019995,2]
[326787334,1715368248303,-4495.134689,0.00019995,2]
[326787335,1715368248312,-4495.134689,0.00019995,2]
[326787336,1715368248321,-158.545696,0.00019995,2]
[326787337,1715368248330,-158.545696,0.00019995,2]
[326787338,1715368248340,-151.0,0.00019995,2]
[326787339,1715368248349,-151.0,0.00019995,2]
[326787340,1715368248359,-188.710919,0.00019995,2]
[326787341,1715368248367,-496.550072,0.00019995,2]
[326787342,1715368248376,-496.550072,0.00019995,2]
[326787343,1715368248386,-151.0,0.00019995,2]
[326787344,1715368248395,-151.0,0.00019995,2]
[326787345,1715368248404,-496.550072,0.00019995,2]
[326787346,1715368248414,-496.550073,0.00019995,2]
[326787347,1715368248423,-1001.077604,0.00019995,2]
[326787348,1715368248433,-1001.077604,0.00019995,2]
[326787349,1715368248442,-1001.077604,0.00019995,2]
[326787350,1715368248451,-1001.077608,0.00019995,2]
[326787351,1715368248460,-154.78330338,0.00019996,2]
[326787352,1715368248470,-454.88990981,0.00019996,2]
[326787353,1715368248479,-322.96243431,0.00019996,2]
[326787354,1715368248488,-452.3709686,0.00019996,2]
[326787355,1715368248498,-816.2716486,0.00019996,2]
[326787356,1715368248507,-314.65978959,0.00019996,2]
[326787357,1715368248517,-303.2346707,0.00019996,2]
[326787358,1715368248527,-155.26700169,0.00019996,2]
[326787359,1715368248536,-284.29807878,0.00019996,2]
[326787360,1715368248545,-847.17482496,0.00019996,2]
[326787361,1715368248554,-154.76784823,0.00019996,2]
[326787362,1715368248564,-186.07602654,0.00019996,2]
[326787363,1715368248574,-409.06760538,0.00019996,2]
[326787364,1715368248589,-303.55598109,0.00019996,2]
[326787365,1715368248611,-154.937081,0.00019996,2]
[326787366,1715368248628,-890.61143724,0.00019996,2]
[326787367,1715368248649,-151.0,0.00019996,2]
[326787368,1715368248670,-151.0,0.00019996,2]
[326787369,1715368248689,-828.579469,0.00019996,2]
[326787370,1715368248707,-828.579469,0.00019996,2]
[326787371,1715368248720,-151.0,0.00019996,2]
[326787372,1715368248737,-151.0,0.00019996,2]
[326787373,1715368248757,-151.0,0.00019996,2]
[326787374,1715368248774,-151.0,0.00019996,2]
[326787375,1715368248786,-187.384107,0.00019996,2]
[326787376,1715368248803,-187.384107,0.00019996,2]
[326787377,1715368248819,-151.0,0.00019996,2]
[326787378,1715368248837,-252.061013,0.00019996,2]
[326787379,1715368248851,-252.061013,0.00019996,2]
[326787380,1715368248866,-356.453291,0.00019996,2]
[326787381,1715368248881,-361.318485,0.00019996,2]
[326787382,1715368248896,-356.453291,0.00019996,2]
[326787383,1715368248909,-361.318485,0.00019996,2]
[326787384,1715368248923,-151.0,0.00019996,2]
[326787385,1715368248940,-2191.231695,0.00019996,2]
[326787386,1715368248957,-346.934962,0.00019996,2]
[326787387,1715368248971,-2191.231695,0.00019996,2]
[326787388,1715368248985,-346.934962,0.00019996,2]
[326787389,1715368249001,-4495.134689,0.00019996,2]
[326787390,1715368249015,-4495.134689,0.00019996,2]
[326787391,1715368249030,-158.545696,0.00019996,2]
[326787392,1715368249045,-158.545696,0.00019996,2]
[326787393,1715368249059,-174.08442524,0.00019997,2]
[326787394,1715368249073,-4308.84815292,0.00019997,2]
[326787395,1715368249087,-151.0,0.00019997,2]
[326787396,1715368249102,-151.0,0.00019997,2]
[326787397,1715368249116,-151.0,0.00019997,2]
[326787398,1715368249133,-151.0,0.00019997,2]
[326787399,1715368249148,-151.0,0.00019997,2]
[326787400,1715368249162,-151.0,0.00019997,2]
[326787401,1715368249176,-151.0,0.00019997,2]
[326787402,1715368249190,-440.403984,0.00019997,2]
[326787403,1715368249204,-440.403984,0.00019997,2]
[326787404,1715368249219,-440.403984,0.00019997,2]
[326787405,1715368249232,-440.403984,0.00019997,2]
[326787406,1715368249246,-440.403984,0.00019997,2]
[326787407,1715368249260,-440.403984,0.00019997,2]
[326787408,1715368249274,-151.0,0.00019997,2]
[326787409,1715368249288,-151.0,0.00019997,2]
[326787410,1715368249302,-151.0,0.00019997,2]
[326787411,1715368249317,-151.0,0.00019997,2]
[326787412,1715368249331,-159.590138,0.00019997,2]
[326787413,1715368249345,-151.0,0.00019997,2]
[326787414,1715368249359,-151.0,0.00019997,2]
[326787415,1715368249373,-206.758543,0.00019997,2]
[326787416,1715368249388,-828.579469,0.00019997,2]
[326787417,1715368249402,-828.579469,0.00019997,2]
[326787418,1715368249415,-828.579469,0.00019997,2]
[326787419,1715368249429,-828.579469,0.00019997,2]
[326787420,1715368249560,-828.579469,0.00019997,2]
[326787421,1715368249569,-828.579469,0.00019997,2]
[326787422,1715368249578,-828.579469,0.00019997,2]
[326787423,1715368249587,-828.579469,0.00019997,2]
[326787424,1715368249596,-151.0,0.00019997,2]
[326787425,1715368249605,-151.0,0.00019997,2]
[326787426,1715368249615,-151.0,0.00019997,2]
[326787427,1715368249623,-151.0,0.00019997,2]
[326787428,1715368249634,-151.0,0.00019997,2]
[326787429,1715368249644,-151.792529,0.00019997,2]
[326787430,1715368249653,-151.0,0.00019997,2]
[326787431,1715368249662,-151.0,0.00019997,2]
[326787432,1715368249671,-151.0,0.00019997,2]
[326787433,1715368249680,-151.0,0.00019997,2]
[326787434,1715368249689,-151.0,0.00019997,2]
[326787435,1715368249699,-151.0,0.00019997,2]
[326787436,1715368249708,-151.0,0.00019997,2]
[326787437,1715368249717,-151.0,0.00019997,2]
[326787438,1715368249726,-187.384107,0.00019997,2]
[326787439,1715368249736,-187.384107,0.00019997,2]
[326787440,1715368249745,-187.384107,0.00019997,2]
[326787441,1715368249754,-187.384107,0.00019997,2]
[326787442,1715368249763,-187.384107,0.00019997,2]
[326787443,1715368249773,-584.790986,0.00019997,2]
[326787444,1715368249782,-187.384107,0.00019997,2]
[326787445,1715368249791,-584.790986,0.00019997,2]
[326787446,1715368249801,-187.384107,0.00019997,2]
[326787447,1715368249810,-584.790986,0.00019997,2]
[326787448,1715368249819,-187.384107,0.00019997,2]
[326787449,1715368249829,-584.790986,0.00019997,2]
[326787450,1715368249838,-187.384107,0.00019997,2]
[326787451,1715368249848,-187.384107,0.00019997,2]
[326787452,1715368249857,-584.790986,0.00019997,2]
[326787453,1715368249867,-584.790986,0.00019997,2]
[326787454,1715368249876,-584.790986,0.00019997,2]
[326787455,1715368249885,-584.790986,0.00019997,2]
[326787456,1715368249896,-5258.336835,0.00019997,2]
[326787457,1715368249905,-5258.336835,0.00019997,2]
[326787458,1715368249915,-5258.336835,0.00019997,2]
[326787459,1715368249924,-5258.336835,0.00019997,2]
[326787460,1715368249933,-5258.336835,0.00019997,2]
[326787461,1715368249942,-5258.336835,0.00019997,2]
[326787462,1715368249953,-5258.336835,0.00019997,2]
[326787463,1715368249963,-5258.336835,0.00019997,2]
[326787464,1715368249972,-151.0,0.00019997,2]
[326787465,1715368249981,-151.0,0.00019997,2]
[326787466,1715368249991,-151.0,0.00019997,2]
[326787467,1715368250000,-252.061013,0.00019997,2]
[326787468,1715368250009,-252.061013,0.00019997,2]
[326787469,1715368250018,-252.061013,0.00019997,2]
[326787470,1715368250028,-252.061013,0.00019997,2]
[326787471,1715368250039,-252.061013,0.00019997,2]
[326787472,1715368250048,-252.061021,0.00019997,2]
[326787473,1715368250057,-356.453291,0.00019997,2]
[326787474,1715368250067,-356.453291,0.00019997,2]
[326787475,1715368250076,-356.453291,0.00019997,2]
[326787476,1715368250085,-361.318485,0.00019997,2]
[326787477,1715368250094,-361.318485,0.00019997,2]
[326787478,1715368250103,-356.453291,0.00019997,2]
[326787479,1715368250112,-361.318485,0.00019997,2]
[326787480,1715368250121,-356.453291,0.00019997,2]
[326787481,1715368250131,-356.453297,0.00019997,2]
[326787482,1715368250140,-361.318485,0.00019997,2]
[326787483,1715368250149,-361.318485,0.00019997,2]
[326787484,1715368250158,-361.318479,0.00019997,2]
[326787485,1715368250167,-151.0,0.00019997,2]
[326787486,1715368250176,-2191.231695,0.00019997,2]
[326787487,1715368250185,-2191.231695,0.00019997,2]
[326787488,1715368250195,-2191.231695,0.00019997,2]
[326787489,1715368250204,-346.934962,0.00019997,2]
[326787490,1715368250213,-346.934962,0.00019997,2]
[326787491,1715368250223,-346.934962,0.00019997,2]
[326787492,1715368250232,-2191.231695,0.00019997,2]
[326787493,1715368250242,-2191.231695,0.00019997,2]
[326787494,1715368250251,-2191.231691,0.00019997,2]
[326787495,1715368250260,-346.934962,0.00019997,2]
[326787496,1715368250269,-346.934962,0.00019997,2]
[326787497,1715368250278,-346.934964,0.00019997,2]
[326787498,1715368250288,-4495.134689,0.00019997,2]
[326787499,1715368250297,-4495.134689,0.00019997,2]
[326787500,1715368250306,-4495.134689,0.00019997,2]
[326787501,1715368250315,-4495.134689,0.00019997,2]
[326787502,1715368250325,-4495.134689,0.00019997,2]
[326787503,1715368250334,-4495.13468,0.00019997,2]
[326787504,1715368250343,-158.545696,0.00019997,2]
[326787505,1715368250352,-158.545696,0.00019997,2]
[326787506,1715368250362,-158.545696,0.00019997,2]
[326787507,1715368250371,-158.545696,0.00019997,2]
[326787508,1715368250381,-158.545696,0.00019997,2]
[326787509,1715368250390,-158.545693,0.00019997,2]
[326787510,1715368250399,-173.53646656,0.00019998,2]
[326787511,1715368250408,-194.47192697,0.00019998,2]
[326787512,1715368250417,-154.94505041,0.00019998,2]
[326787513,1715368250427,-159.26367028,0.00019998,2]
[326787514,1715368250436,-267.5922185,0.00019998,2]
[326787515,1715368250445,-154.81862194,0.00019998,2]
[326787516,1715368250454,-189.37645912,0.00019998,2]
[326787517,1715368250464,-604.62485122,0.00019998,2]
[326787518,1715368250473,-904.71121898,0.00019998,2]
[326787519,1715368250482,-151.0,0.00019998,2]
[326787520,1715368250491,-151.0,0.00019998,2]
[326787521,1715368250500,-151.0,0.00019998,2]
[326787522,1715368250509,-151.0,0.00019998,2]
[326787523,1715368250518,-151.0,0.00019998,2]
[326787524,1715368250527,-151.0,0.00019998,2]
[326787525,1715368250536,-151.0,0.00019998,2]
[326787526,1715368250546,-229.386773,0.00019998,2]
[326787527,1715368250555,-151.0,0.00019998,2]
[326787528,1715368250564,-151.0,0.00019998,2]
[326787529,1715368250573,-151.0,0.00019998,2]
[326787530,1715368250583,-184.416338,0.00019998,2]
[326787531,1715368250592,-440.403984,0.00019998,2]
[326787532,1715368250601,-440.403984,0.00019998,2]
[326787533,1715368250610,-440.403984,0.00019998,2]
[326787534,1715368250620,-440.403984,0.00019998,2]
[326787535,1715368250629,-440.403984,0.00019998,2]
[326787536,1715368250639,-440.403984,0.00019998,2]
[326787537,1715368250648,-440.403984,0.00019998,2]
[326787538,1715368250657,-440.403984,0.00019998,2]
[326787539,1715368250666,-440.403984,0.00019998,2]
[326787540,1715368250675,-440.403984,0.00019998,2]
[326787541,1715368250685,-151.0,0.00019998,2]
[326787542,1715368250694,-151.0,0.00019998,2]
[326787543,1715368250704,-151.0,0.00019998,2]
[326787544,1715368250713,-151.0,0.00019998,2]
[326787545,1715368250722,-151.0,0.00019998,2]
[326787546,1715368250731,-828.579469,0.00019998,2]
[326787547,1715368250742,-828.579469,0.00019998,2]
[326787548,1715368250751,-828.579469,0.00019998,2]
[326787549,1715368250761,-828.579469,0.00019998,2]
[326787550,1715368250771,-828.579469,0.00019998,2]
[326787551,1715368250780,-828.579469,0.00019998,2]
[326787552,1715368250789,-828.579469,0.00019998,2]
[326787553,1715368250798,-828.579469,0.00019998,2]
[326787554,1715368250807,-828.579469,0.00019998,2]
[326787555,1715368250817,-828.579472,0.00019998,2]
[326787556,1715368250826,-151.0,0.00019998,2]
[326787557,1715368250835,-151.0,0.00019998,2]
[326787558,1715368250844,-151.0,0.00019998,2]
[326787559,1715368250853,-151.0,0.00019998,2]
[326787560,1715368250863,-151.0,0.00019998,2]
[326787561,1715368250874,-187.384107,0.00019998,2]
[326787562,1715368250883,-187.384107,0.00019998,2]
[326787563,1715368250893,-187.384107,0.00019998,2]
[326787564,1715368250902,-187.384107,0.00019998,2]
[326787565,1715368250911,-584.790986,0.00019998,2]
[326787566,1715368250920,-584.790986,0.00019998,2]
[326787567,1715368250929,-187.384107,0.00019998,2]
[326787568,1715368250938,-187.384107,0.00019998,2]
[326787569,1715368250948,-187.384107,0.00019998,2]
[326787570,1715368250961,-187.384101,0.00019998,2]
[326787571,1715368250971,-584.790986,0.00019998,2]
[326787572,1715368250980,-584.79098152,0.00019998,2]
[326787573,1715368250990,-5258.336835,0.00019998,2]
[326787574,1715368250999,-5258.336835,0.00019998,2]
[326787575,1715368251007,-5258.336835,0.00019998,2]
[326787576,1715368251016,-5258.33684378,0.00019998,2]
[326787577,1715368251026,-213.05391565,0.00019999,2]
[326787578,1715368251038,-155.21834635,0.00019999,2]
[326787579,1715368251048,-838.59959304,0.00019999,2]
[326787580,1715368251057,-203.78060237,0.00019999,2]
[326787581,1715368251066,-151.0,0.00019999,2]
[326787582,1715368251075,-151.903811,0.00019999,2]
[326787583,1715368251085,-151.0,0.00019999,2]
[326787584,1715368251096,-190.526451,0.00019999,2]
[326787585,1715368251188,-151.0,0.00019999,2]
[326787586,1715368251198,-151.0,0.00019999,2]
[326787587,1715368251207,-440.403984,0.00019999,2]
[326787588,1715368251216,-440.403984,0.00019999,2]
[326787589,1715368251225,-440.403984,0.00019999,2]
[326787590,1715368251234,-440.403977,0.00019999,2]
[326787591,1715368251244,-195.287305,0.00019999,2]
[326787592,1715368251253,-24179.61742055,0.0002,2]
[326787593,1715368251262,-184.24792975,0.0002,2]
[326787594,1715368251271,-15855.85216442,0.0002,2]
[326787595,1715368251281,-167.2605981,0.0002,2]
[326787596,1715368251290,-400.0,0.0002,2]
[326787597,1715368251299,-380.05955451,0.0002,2]
[326787598,1715368251308,-10615.15949594,0.0002,2]
[326787599,1715368251317,-197.078487,0.0002,2]
[326787600,1715368251326,-200.0,0.0002,2]
[326787601,1715368251335,-303.9776338,0.00020876,2]
[326787602,1715368251345,-281.0,0.000209,2]
[326787603,1715368251354,-170.241775,0.000209,2]
[326787604,1715368251363,-730.02700748,0.00020909,2]
[326787605,1715368251372,-311.02701168,0.0002091,2]
[326787606,1715368251382,-155.59196469,0.0002091,2]
[326787607,1715368251391,-586.2783073,0.00020912,2]
[326787608,1715368251400,-297.46640052,0.00020912,2]
[326787609,1715368251410,-3966.74516132,0.00021,2]
[326787610,1715368251419,-166.069792,0.00021918,2]
[326787611,1715368251428,-166.666667,0.00021918,2]
[326787612,1715368251436,-166.666666,0.00021918,2]
[326787613,1715368251445,-166.6666684,0.00021918,2]
[326787614,1715368251455,-151.0,0.00021918,2]
[326787615,1715368251464,-151.0,0.00021918,2]
[326787616,1715368251473,-151.0,0.00021918,2]
[326787617,1715368251481,-151.0,0.00021918,2]
[326787618,1715368251491,-151.0,0.00021918,2]
[326787619,1715368251499,-151.0,0.00021918,2]
[326787620,1715368251509,-151.0,0.00021918,2]
[326787621,1715368251518,-151.0,0.00021918,2]
[326787622,1715368251527,-151.0,0.00021918,2]
[326787623,1715368251536,-151.0,0.00021918,2]
[326787624,1715368251545,-151.0,0.00021918,2]
[326787625,1715368251554,-182.49289,0.00021918,2]
[326787626,1715368251564,-10000.0,0.00021918,2]
[326787627,1715368251573,-500.0,0.00021918,2]
[326787628,1715368251583,-501.57920065,0.00021918,2]
[326787629,1715368251592,-5229.71545665,0.00022,2]
[326787630,1715368251601,-159.42165086,0.00022,2]
[326787631,1715368251610,-2582.74396862,0.00022,2]
[326787632,1715368251619,-3000.0,0.00022,2]
[326787633,1715368251628,-156.40335399,0.00022,2]
[326787634,1715368251636,-166.666666,0.00022431,2]
[326787635,1715368251646,-5600.0,0.000225,6]
[326787636,1715368251656,-166.666666,0.00022944,2]
[326787637,1715368251665,-714.97924015,0.00023,2]
[326787638,1715368251674,-154.75239617,0.00023,2]
[326787639,1715368251683,-5013.64510414,0.00023,2]
[326787640,1715368251692,-166.666666,0.00023456,2]
[326787641,1715368251701,-5737.41666045,0.000239,2]
[326787642,1715368251710,-161.99734,0.00023963,2]
[326787643,1715368251719,-166.666666,0.00023969,2]
[326787644,1715368251730,-700.69442921,0.00024,2]
[326787645,1715368251739,-166.666666,0.00024482,2]
[326787646,1715368251748,-380.0,0.00024658,2]
[326787647,1715368251757,-160.0,0.00024673,2]
[326787648,1715368251766,-494.075469,0.00024853,2]
[326787649,1715368251775,-167.10326178,0.00025,2]
[326787650,1715368251785,-400.10978683,0.00025,2]
[326787651,1715368251794,-164.50950765,0.00025,2]
[326787652,1715368251803,-660.97679735,0.00025,10]
[326787653,1715368251813,-320.0,0.00025221,2]
[326787654,1715368251823,-359.07716322,0.00025769,2]
[326787655,1715368251832,-210.1676795,0.00025786,3]
[326787656,1715368251842,-3000.0,0.00026599,2]
[326787657,1715368251852,-3000.0,0.00026599,2]
[326787658,1715368251861,-3000.0,0.00026599,2]
[326787659,1715368251870,-3000.0,0.00026599,2]
[326787660,1715368251879,-3001.95252927,0.00026599,2]
[326787661,1715368251889,-2041.60343904,0.000266,2]
[326787662,1715368251898,-167.362711,0.00026899,2]
[326787663,1715368251908,-186.81844012,0.00027,2]
[326787664,1715368251917,-1000.0,0.00027397,2]
[326787665,1715368251926,-1000.0,0.00027397,2]
[326787666,1715368251936,-608.85010552,0.00027397,2]
[326787667,1715368251945,-500.0,0.00027397,2]
[326787668,1715368251958,-500.0,0.00027397,2]
[326787669,1715368251967,-500.0,0.00027397,2]
[326787670,1715368251977,-500.0,0.00027397,2]
[326787671,1715368251986,-500.0,0.00027397,2]
[326787672,1715368251996,-187.0807528,0.00027397,2]
[326787673,1715368252006,-500.0,0.00027397,2]
[326787674,1715368252016,-500.0,0.00027397,2]
[326787675,1715368252025,-500.0,0.00027397,2]
[326787676,1715368252038,-500.0,0.00027397,2]
[326787677,1715368252048,-500.0,0.00027397,2]
[326787678,1715368252057,-500.0,0.00027397,2]
[326787679,1715368252067,-500.0,0.00027397,2]
[326787680,1715368252076,-500.0,0.00027397,2]
[326787681,1715368252085,-631.89786143,0.00027397,2]
[326787682,1715368252094,-407.36411772,0.00027397,2]
[326787683,1715368252103,-808.47776052,0.000275,17]
[326787684,1715368252113,-154.76784823,0.00028,2]
[326787685,1715368252122,-221.20105551,0.00028,2]
[326787686,1715368252132,-161.203823,0.00028,2]
[326787687,1715368252141,-162.775535,0.00028,2]
[326787688,1715368252150,-171.5560732,0.00028219,2]
[326787689,1715368252160,-5737.41666045,0.000289,2]
[326787690,1715368252170,-844.36651124,0.00029,2]
[326787691,1715368252179,-189.38714008,0.00029,2]
[326787692,1715368252189,-1131.95738102,0.00029832,2]
[326787693,1715368252198,-733.25173669,0.00029899,2]
[326787694,1715368252207,-242.51178886,0.0003,4]
[326787695,1715368252217,-17197.76503125,0.0003,10]
[326787696,1715368252227,-309.28308511,0.0003,4]
[326787697,1715368252236,-154.83438006,0.0003,4]
[326787698,1715368252245,-172.0,0.0003,2]
[326787699,1715368252255,-645.59786905,0.00031324,2]
[326787700,1715368252265,-625.66258683,0.00031394,2]
[326787701,1715368252274,-742.13187021,0.00032,2]
[326787702,1715368252284,-447.59882745,0.00032,4]
[326787703,1715368252294,-161.99734,0.00032037,2]
[326787704,1715368252304,-196.0,0.0003226,24]
[326787705,1715368252313,-19787.99425316,0.00032777,2]
[326787706,1715368252323,-500.0,0.00032877,7]
[326787707,1715368252332,-500.0,0.00032877,7]
[326787708,1715368252342,-500.0,0.00032877,7]
[326787709,1715368252351,-500.0,0.00032877,7]
[326787710,1715368252360,-500.0,0.00032877,7]
[326787711,1715368252370,-610.72197654,0.00032877,7]
[326787712,1715368252379,-500.0,0.00032877,7]
[326787713,1715368252389,-500.0,0.00032877,7]
[326787714,1715368252399,-500.0,0.00032877,7]
[326787715,1715368252409,-500.0,0.00032877,7]
[326787716,1715368252419,-500.0,0.00032877,7]
[326787717,1715368252429,-500.0,0.00032877,7]
[326787718,1715368252438,-500.0,0.00032877,7]
[326787719,1715368252447,-500.0,0.00032877,7]
[326787720,1715368252456,-500.0,0.00032877,7]
[326787721,1715368252466,-500.0,0.00032877,7]
[326787722,1715368252475,-500.0,0.00032877,7]
[326787723,1715368252484,-621.27989345,0.0003289,2]
[326787724,1715368252494,-620.28312934,0.00032964,2]
[326787725,1715368252503,-172.0,0.00033,2]
[326787726,1715368252512,-151.0,0.00033055,4]
[326787727,1715368252522,-467.00386112,0.00034,4]
[326787728,1715368252531,-234.83173519,0.00034,2]
[326787729,1715368252540,-620.06399467,0.00034535,2]
[326787730,1715368252550,-620.01415647,0.00034612,2]
[326787731,1715368252559,-725.62777186,0.00035,2]
[326787732,1715368252568,-376.57535932,0.00035,30]
[326787733,1715368252578,-669.40720744,0.00035,4]
[326787734,1715368252587,-154.76784823,0.00035,4]
[326787735,1715368252596,-309.4430026,0.00035,4]
[326787736,1715368252686,-935.45,0.000356,30]
[326787737,1715368252696,-3860.06,0.00035616,3]
[326787738,1715368252705,-212.00535005,0.0003589,2]
[326787739,1715368252715,-46747.81752011,0.00036,2]
[326787740,1715368252724,-172.0,0.00036,2]
[326787741,1715368252734,-620.00319973,0.00036261,2]
[326787742,1715368252743,-620.00070782,0.00036343,2]
[326787743,1715368252752,-543.65232568,0.00037,2]
[326787744,1715368252762,-2433.86913933,0.00037,5]
[326787745,1715368252771,-167.362711,0.00037908,2]
[326787746,1715368252780,-71404.48666495,0.00038,30]
[326787747,1715368252789,-1670.7014822,0.00038,120]
[326787748,1715368252798,-620.00015999,0.00038075,2]
[326787749,1715368252807,-410.0439855,0.00039,14]
[326787750,1715368252816,-302.39532113,0.00039175,2]
[326787751,1715368252825,-6819.94090099,0.00039206,2]
[326787752,1715368252834,-10000.0,0.00039209,30]
[326787753,1715368252844,-10000.0,0.00039209,30]
[326787754,1715368252852,-5000.0,0.00039209,30]
[326787755,1715368252862,-1292.236923,0.000393,29]
[326787756,1715368252871,-154.78330338,0.0003933,7]
[326787757,1715368252881,-364.18525495,0.0003933,2]
[326787758,1715368252891,-32320.92547922,0.0003933,120]
[326787759,1715368252900,-200.0,0.0003934,2]
[326787760,1715368252910,-200.0,0.0003934,2]
[326787761,1715368252919,-1174.39118562,0.00039341,2]
[326787762,1715368252929,-300.0,0.00039341,2]
[326787763,1715368252938,-782.64876785,0.00039341,2]
[326787764,1715368252947,-507.23061855,0.00039341,2]
[326787765,1715368252960,-287.04993241,0.00039341,2]
[326787766,1715368252969,-4093.95949096,0.00039341,2]
[326787767,1715368252978,-316.03192088,0.00039341,2]
[326787768,1715368252987,-9957.88273507,0.00039341,2]
[326787769,1715368252997,-2712.94991361,0.00039341,2]
[326787770,1715368253006,-152.25589041,0.00039341,2]
[326787771,1715368253015,-431.44946284,0.00039341,2]
[326787772,1715368253024,-3016.706151,0.00039341,2]
[326787773,1715368253034,-1005.01807778,0.00039341,2]
[326787774,1715368253043,-522.80237075,0.00039341,7]
[326787775,1715368253052,-1775.14804254,0.00039341,2]
[326787776,1715368253061,-620.000008,0.00039978,2]
[326787777,1715368253071,-1074.2144978,0.0004,4]
[326787778,1715368253080,-295.94414684,0.0004,15]
[326787779,1715368253089,-201.02548363,0.0004,4]
[326787780,1715368253098,-161.203823,0.0004011,2]
[326787781,1715368253108,-162.775535,0.0004011,2]
[326787782,1715368253117,-161.99734,0.0004011,2]
[326787783,1715368253127,-151.43220059,0.00040164,2]
[326787784,1715368253137,-215.314,0.00040376,2]
[326787785,1715368253147,-235.9526589,0.00040914,120]
[326787786,1715368253155,-178.3315887,0.00041096,2]
[326787787,1715368253165,-500.0,0.00041096,31]
[326787788,1715368253174,-500.0,0.00041096,31]
[326787789,1715368253183,-500.0,0.00041096,31]
[326787790,1715368253193,-500.0,0.00041096,31]
[326787791,1715368253203,-500.0,0.00041096,31]
[326787792,1715368253212,-261.22602888,0.00041096,31]
[326787793,1715368253221,-620.0000004,0.00041977,15]
[326787794,1715368253230,-268.82155975,0.00042,2]
[326787795,1715368253239,-211.32341903,0.00042465,7]
[326787796,1715368253248,-1698.25938138,0.000425,30]
[326787797,1715368253258,-167.651318,0.00042695,30]
[326787798,1715368253267,-3826.774426,0.00042695,30]
[326787799,1715368253276,-3018.345758,0.00042695,30]
[326787800,1715368253285,-167.554645,0.00042695,30]
[326787801,1715368253294,-1042.669784,0.00042695,30]
[326787802,1715368253303,-1172.417176,0.00042695,30]
[326787803,1715368253313,-226.139,0.00043176,2]
[326787804,1715368253322,-250.0,0.00043176,2]
[326787805,1715368253332,-494.0,0.00043176,2]
[326787806,1715368253341,-3826.774426,0.00043229,30]
[326787807,1715368253351,-3018.345758,0.00043229,30]
[326787808,1715368253360,-1042.669784,0.00043229,30]
[326787809,1715368253369,-1172.417176,0.00043229,30]
[326787810,1715368253379,-150.0,0.00043376,2]
[326787811,1715368253389,-3826.774426,0.00043762,30]
[326787812,1715368253398,-3018.345758,0.00043762,30]
[326787813,1715368253407,-1042.669784,0.00043762,30]
[326787814,1715368253416,-1172.417176,0.00043762,30]
[326787815,1715368253427,-156.41622596,0.00044,15]
[326787816,1715368253437,-162.73015417,0.00044,120]
[326787817,1715368253446,-620.00000002,0.00044076,15]
[326787818,1715368253456,-3826.774426,0.00044296,30]
[326787819,1715368253466,-3018.345758,0.00044296,30]
[326787820,1715368253476,-1042.669784,0.00044296,30]
[326787821,1715368253486,-1172.417176,0.00044296,30]
[326787822,1715368253495,-153.0,0.00044565,2]
[326787823,1715368253504,-3826.774426,0.0004483,30]
[326787824,1715368253514,-3018.345758,0.0004483,30]